bitfinex-derivatives/quotes_BTCF0:USTF0_20240829
["timestamp","ask_amount","ask_price","bid_price","bid_amount"]
[1724951759574,0.082803,60363.0,60357.0,0.43128]
[1724951759575,0.08281,60358.0,60357.0,0.29]
[1724951759878,0.082812,60356.0,60355.0,0.00024847]
[1724951760071,0.165624,60356.0,60355.0,0.00024847]
[1724951760474,0.34382998,60356.0,60355.0,1e-08]
[1724951760676,0.082822,60349.0,60348.0,0.3608]
[1724951761188,0.082826,60346.0,60345.0,0.29846893]
[1724951761683,0.26097766,60346.0,60345.0,0.29]
[1724951761872,0.082826,60346.0,60345.0,0.29]
[1724951762272,0.081826,60346.0,60345.0,0.29839353]
[1724951762572,0.081826,60346.0,60345.0,0.38122053]
[1724951762769,3.77,60346.0,60345.0,0.87834053]
[1724951762972,0.082821,60350.0,60348.0,0.082823]
[1724951763181,0.082821,60350.0,60349.0,0.082822]
[1724951763684,0.04138545,60350.0,60349.0,0.082822]
[1724951764269,0.17815166,60351.0,60350.0,0.082821]
[1724951764474,0.26097066,60351.0,60350.0,0.082821]
[1724951765275,0.082823,60348.0,60347.0,0.443625]
[1724951765475,0.081823,60348.0,60347.0,0.443625]
[1724951765983,0.081823,60348.0,60347.0,0.3608]
[1724951766184,0.164646,60348.0,60347.0,0.3608]
[1724951766484,3.934646,60348.0,60347.0,0.3608]
[1724951766885,0.082826,60346.0,60345.0,0.29]
[1724951767183,0.165666,60341.0,60339.0,0.00024847]
[1724951767388,0.082826,60346.0,60339.0,0.00024847]
[1724951767389,0.294568,60340.0,60339.0,0.00024847]
[1724951767980,0.211734,60340.0,60339.0,0.00024847]
[1724951768696,4.1308,60348.0,60339.0,0.00024847]
[1724951768880,0.443623,60348.0,60347.0,0.082825]
[1724951769188,0.3638,60348.0,60347.0,0.09197399]
[1724951769482,0.003,60348.0,60347.0,0.09197399]
[1724951769878,0.29825166,60351.0,60350.0,0.082821]
[1724951770079,0.29825166,60351.0,60350.0,0.372821]
[1724951770681,0.26097066,60351.0,60350.0,0.372821]
[1724951771185,0.26097066,60351.0,60350.0,0.29]
[1724951771692,0.00024773,60352.0,60347.0,0.001]
[1724951771693,0.082823,60348.0,60347.0,0.001]
[1724951771987,0.165646,60348.0,60347.0,0.001]
[1724951772373,0.165646,60348.0,60344.0,0.35622977]
[1724951772374,0.081827,60345.0,60344.0,0.35622977]
[1724951772580,0.081827,60345.0,60344.0,0.06622977]
[1724951772876,0.081827,60345.0,60339.0,0.29024847]
[1724951772877,0.082832,60342.0,60341.0,0.06622977]
[1724951773387,0.164668,60340.0,60339.0,0.35611797]
[1724951773684,0.164668,60340.0,60339.0,0.06611797]
[1724951773881,0.164668,60340.0,60339.0,0.00024847]
[1724951774079,0.247502,60340.0,60339.0,0.00024847]
[1724951774385,1.26601304,60340.0,60339.0,0.00024847]
[1724951774778,1.26601304,60340.0,60339.0,1e-08]
[1724951775481,0.16569,60332.0,60331.0,0.0039]
[1724951775687,0.082852,60327.0,60326.0,0.04944861]
[1724951775879,0.082853,60326.0,60325.0,0.04944861]
[1724951776076,0.12594504,60326.0,60325.0,0.04945015]
[1724951776278,0.20879804,60326.0,60324.0,0.04945015]
[1724951776477,0.20879804,60326.0,60324.0,0.082856]
[1724951776878,0.00414504,60325.0,60324.0,0.082856]
[1724951777079,0.00414504,60325.0,60324.0,0.443656]
[1724951777284,0.082848,60330.0,60328.0,0.082851]
[1724951777595,0.00414535,60329.0,60328.0,0.082851]
[1724951778182,0.00414535,60329.0,60328.0,0.14879937]
[1724951778586,0.00414535,60329.0,60328.0,0.082851]
[1724951779484,0.00414535,60329.0,60328.0,0.083851]
[1724951779693,0.005,60330.0,60329.0,0.082849]
[1724951779881,0.005,60330.0,60329.0,0.14880997]
[1724951780289,0.00024847,60331.0,60330.0,0.082848]
[1724951780496,0.00024847,60331.0,60330.0,0.14880277]
[1724951780791,0.00439357,60331.0,60330.0,0.14880277]
[1724951780987,0.00439357,60331.0,60330.0,0.082848]
[1724951781388,0.08724057,60331.0,60330.0,0.082848]
[1724951782291,0.08309547,60331.0,60330.0,0.082848]
[1724951782491,0.08724061,60331.0,60330.0,0.13230553]
[1724951782897,0.00439361,60331.0,60330.0,0.13230553]
[1724951783097,0.00839361,60331.0,60330.0,0.083848]
[1724951783393,0.00424847,60331.0,60330.0,0.083848]
[1724951783792,0.00839367,60331.0,60330.0,0.083848]
[1724951784189,0.00439367,60331.0,60330.0,0.165696]
[1724951784398,0.1295,60340.0,60339.0,0.082836]
[1724951784593,0.1256,60340.0,60339.0,0.082836]
[1724951784987,0.1297445,60340.0,60339.0,0.082836]
[1724951785183,0.1297445,60340.0,60339.0,0.13228823]
[1724951785184,0.2125785,60340.0,60339.0,0.13228823]
[1724951785383,0.208434,60340.0,60339.0,0.082836]
[1724951785799,0.082831,60343.0,60342.0,0.082829]
[1724951787198,0.44387373,60346.0,60345.0,0.082827]
[1724951787999,0.00024773,60346.0,60345.0,0.455654]
[1724951788301,0.1172,60357.0,60354.0,0.082815]
[1724951788602,0.082791,60372.0,60354.0,0.33948941]
[1724951788603,0.082802,60364.0,60354.0,0.33948941]
[1724951788787,0.082802,60364.0,60362.0,0.29]
[1724951789100,0.082802,60364.0,60351.0,0.3608]
[1724951789101,0.01182844,60366.0,60356.0,0.04973788]
[1724951789295,0.526422,60357.0,60356.0,0.00024847]
[1724951789491,0.082822,60349.0,60348.0,0.0039]
[1724951789796,0.082826,60346.0,60345.0,0.001]
[1724951790006,0.082828,60345.0,60343.0,0.082829]
[1724951790199,0.082828,60345.0,60344.0,0.082829]
[1724951791706,0.08283,60344.0,60342.0,0.29]
[1724951792093,0.08183,60344.0,60342.0,0.29]
[1724951792287,0.08183,60344.0,60343.0,0.08283]
[1724951792886,0.08483,60344.0,60343.0,0.08283]
[1724951793296,0.003,60344.0,60343.0,0.08283]
[1724951793604,0.082828,60345.0,60343.0,0.08283]
[1724951793796,0.1207,60348.0,60341.0,0.3608]
[1724951793797,0.004,60344.0,60341.0,0.3608]
[1724951793998,0.082832,60342.0,60341.0,0.3608]
[1724951794195,0.082836,60339.0,60338.0,0.00024847]
[1724951794801,0.082836,60339.0,60338.0,0.08308547]
[1724951796697,0.085836,60339.0,60338.0,0.08308547]
[1724951798300,0.088836,60339.0,60338.0,0.08308547]
[1724951799903,0.082836,60339.0,60338.0,0.08308547]
[1724951800105,0.088836,60339.0,60338.0,0.08308547]
[1724951804108,0.006,60339.0,60338.0,0.08308547]
[1724951804902,0.007,60339.0,60338.0,0.08308547]
[1724951805507,0.006,60339.0,60338.0,0.08308547]
[1724951805811,0.005,60339.0,60338.0,0.08608547]
[1724951807103,0.082832,60342.0,60341.0,0.082833]
[1724951807902,3.852832,60342.0,60341.0,0.082833]
[1724951809607,3.857832,60342.0,60341.0,0.082833]
[1724951809806,0.005,60342.0,60341.0,0.082833]
[1724951810016,0.3608,60352.0,60350.0,0.082821]
[1724951810200,0.09516854,60357.0,60350.0,0.09115014]
[1724951810906,0.082815,60355.0,60350.0,0.02023671]
[1724951811107,0.082823,60348.0,60347.0,0.001]
[1724951811310,0.082829,60345.0,60344.0,0.082828]
[1724951811703,0.081829,60345.0,60344.0,0.082828]
[1724951811906,0.080829,60345.0,60344.0,0.082828]
[1724951812311,0.079829,60345.0,60344.0,0.082828]
[1724951812518,0.082833,60342.0,60341.0,0.082833]
[1724951813916,0.005,60345.0,60344.0,0.082829]
[1724951814111,0.005,60345.0,60344.0,0.372829]
[1724951814308,0.005,60345.0,60344.0,0.455658]
[1724951814611,0.008,60345.0,60344.0,0.455658]
[1724951815010,0.008,60345.0,60344.0,0.456658]
[1724951815410,0.003,60345.0,60344.0,0.456658]
[1724951815609,0.567521,60350.0,60349.0,0.082822]
[1724951818117,0.570521,60350.0,60349.0,0.083822]
[1724951818415,0.578521,60350.0,60349.0,0.084822]
[1724951819017,0.011,60350.0,60349.0,0.084822]
[1724951819417,0.011,60350.0,60349.0,0.13447451]
[1724951820224,0.011,60350.0,60349.0,0.14663534]
[1724951820615,0.093821,60350.0,60349.0,0.14663534]
[1724951821013,0.093821,60350.0,60349.0,0.09698283]
[1724951821826,0.093821,60350.0,60349.0,0.13447451]
[1724951822224,0.011,60350.0,60349.0,0.30011851]
[1724951822823,0.082793,60371.0,60350.0,0.082821]
[1724951823039,0.0039,60366.0,60360.0,0.082807]
[1724951823327,0.082798,60367.0,60360.0,0.082807]
[1724951823328,0.083638,60367.0,60366.0,0.082799]
[1724951823625,3.852798,60367.0,60366.0,0.082799]
[1724951823828,3.77,60367.0,60366.0,0.082799]
[1724951824137,0.082794,60370.0,60363.0,0.372801]
[1724951824318,0.1257,60373.0,60369.0,0.29]
[1724951824526,0.00414249,60372.0,60369.0,0.29]
[1724951824722,3.77,60371.0,60369.0,0.29]
[1724951825023,3.77,60371.0,60370.0,0.082793]
[1724951826034,3.852792,60371.0,60370.0,0.082793]
[1724951826218,0.082793,60370.0,60369.0,0.001]
[1724951826423,0.082793,60370.0,60369.0,0.3618]
[1724951826627,0.082796,60368.0,60367.0,0.082797]
[1724951826929,0.0869385,60368.0,60367.0,0.082797]
[1724951827436,0.082797,60367.0,60366.0,0.001]
[1724951827640,0.082808,60359.0,60350.0,0.0496363]
[1724951827824,0.082808,60359.0,60346.0,0.082825]
[1724951827825,0.082823,60349.0,60346.0,0.082825]
[1724951828163,0.0041425,60348.0,60347.0,0.082825]
[1724951828325,0.7347,60358.0,60345.0,0.29]
[1724951828524,0.082815,60354.0,60353.0,0.372814]
[1724951828725,0.7347,60358.0,60357.0,0.082811]
[1724951828726,0.817511,60358.0,60357.0,0.082811]
[1724951828931,0.3608,60358.0,60357.0,0.082811]
[1724951829338,4.1308,60358.0,60357.0,0.082811]
[1724951829531,0.00024847,60360.0,60359.0,0.082808]
[1724951829725,0.00024847,60360.0,60359.0,0.372808]
[1724951829932,1e-08,60360.0,60359.0,0.455616]
[1724951830232,1e-08,60360.0,60359.0,0.538424]
[1724951831035,1e-08,60360.0,60359.0,0.899224]
[1724951832139,1e-08,60360.0,60359.0,0.900224]
[1724951832339,1e-08,60360.0,60359.0,0.901224]
[1724951832532,0.00414242,60360.0,60359.0,0.901224]
[1724951833441,3.77,60372.0,60371.0,0.082792]
[1724951833641,3.77,60372.0,60371.0,0.372792]
[1724951834746,0.3608,60375.0,60371.0,0.372792]
[1724951834747,0.3608,60375.0,60374.0,0.082788]
[1724951834933,0.40134548,60375.0,60374.0,0.082788]
[1724951835129,0.48413148,60375.0,60374.0,0.082788]
[1724951835329,4.25413148,60375.0,60374.0,0.082788]
[1724951836447,4.17134548,60375.0,60374.0,0.084788]
[1724951837035,0.3608,60375.0,60374.0,0.084788]
[1724951837435,0.40134518,60375.0,60374.0,0.084788]
[1724951838446,0.40134517,60375.0,60374.0,0.084788]
[1724951838844,0.3608,60375.0,60374.0,0.084788]
[1724951839040,0.443586,60375.0,60374.0,0.084788]
[1724951839738,0.3608,60375.0,60374.0,0.084788]
[1724951840146,0.1205,60379.0,60378.0,0.082782]
[1724951840353,0.1205,60379.0,60378.0,0.372782]
[1724951841447,0.1205,60379.0,60378.0,0.373782]
[1724951841849,0.203281,60379.0,60378.0,0.373782]
[1724951842147,0.203281,60379.0,60378.0,0.083782]
[1724951842338,0.203281,60379.0,60378.0,0.084782]
[1724951843140,3.973281,60379.0,60378.0,0.084782]
[1724951844845,0.1205,60379.0,60378.0,0.374782]
[1724951845056,0.1292,60386.0,60385.0,0.082773]
[1724951845446,3.981971,60386.0,60385.0,0.082773]
[1724951845848,4.13270076,60386.0,60385.0,0.082773]
[1724951846053,4.00350076,60386.0,60385.0,0.082773]
[1724951846358,4.00350076,60386.0,60385.0,0.083773]
[1724951847144,4.00350076,60386.0,60385.0,0.084773]
[1724951849338,4.00349804,60386.0,60385.0,0.084773]
[1724951850454,4.00349804,60386.0,60385.0,0.09657727]
[1724951852041,3.92072704,60386.0,60385.0,0.09657727]
[1724951852550,3.92072704,60386.0,60385.0,0.09557727]
[1724951852749,3.92072704,60386.0,60385.0,0.09657727]
[1724951853952,3.77,60386.0,60385.0,0.09657727]
[1724951857150,3.77,60386.0,60385.0,0.084773]
[1724951857357,4.8668,60386.0,60372.0,0.0496363]
[1724951857555,0.165558,60380.0,60368.0,0.0496363]
[1724951857759,0.165558,60380.0,60367.0,0.3396363]
[1724951858163,0.082779,60380.0,60368.0,0.0496363]
[1724951858458,0.082779,60380.0,60379.0,0.00124847]
[1724951858961,0.082779,60380.0,60379.0,0.00224847]
[1724951860952,0.082779,60380.0,60379.0,0.08502947]
[1724951865068,0.3608,60382.0,60381.0,0.082778]
[1724951867159,0.3608,60382.0,60381.0,0.083778]
[1724951867358,0.3608,60382.0,60381.0,0.084778]
[1724951867359,0.001,60382.0,60381.0,0.084778]
[1724951868355,0.04153923,60382.0,60381.0,0.084778]
[1724951869366,0.1889152,60382.0,60381.0,0.084778]
[1724951869666,0.04153923,60382.0,60381.0,0.084778]
[1724951870777,0.04153923,60382.0,60381.0,0.09709133]
[1724951871571,0.12431623,60382.0,60381.0,0.09709133]
[1724951873178,0.04153923,60382.0,60381.0,0.09709133]
[1724951873671,0.04153815,60382.0,60381.0,0.09709133]
[1724951873866,0.12431515,60382.0,60381.0,0.002]
[1724951874062,0.37084323,60382.0,60381.0,0.002]
[1724951874260,0.17512697,60382.0,60381.0,0.002]
[1724951874466,0.12431515,60382.0,60381.0,0.002]
[1724951874666,0.60878507,60382.0,60381.0,0.084778]
[1724951874864,0.53592697,60382.0,60381.0,0.084778]
[1724951875583,0.78291952,60382.0,60381.0,0.002]
[1724951875773,0.082779,60380.0,60379.0,0.00024847]
[1724951876577,0.165558,60380.0,60379.0,0.00024847]
[1724951876963,0.165558,60380.0,60379.0,0.00124847]
[1724951877166,0.166558,60380.0,60379.0,0.00224847]
[1724951878473,0.17870628,60380.0,60379.0,0.00224847]
[1724951881470,0.53950628,60380.0,60379.0,0.00224847]
[1724951886287,0.444579,60380.0,60379.0,0.08502947]
[1724951886689,0.48512223,60380.0,60379.0,0.08502947]
[1724951887783,0.17576236,60380.0,60379.0,0.08502947]
[1724951888089,0.48512223,60380.0,60379.0,0.08502947]
[1724951888480,0.53656236,60380.0,60379.0,0.08502947]
[1724951889288,0.61934136,60380.0,60379.0,0.00224847]
[1724951890695,0.53656236,60380.0,60379.0,0.00224847]
[1724951891075,0.49601913,60380.0,60379.0,0.00224847]
[1724951892593,0.444579,60380.0,60379.0,0.00224847]
[1724951893986,0.49601913,60380.0,60379.0,0.00224847]
[1724951894388,0.49601913,60380.0,60379.0,0.08502947]
[1724951894590,0.41324013,60380.0,60379.0,0.08502947]
[1724951894787,0.3618,60380.0,60379.0,0.08502947]
[1724951895093,0.001,60380.0,60379.0,0.81861047]
[1724951896287,0.001,60380.0,60379.0,0.73582947]
[1724951896485,0.001,60380.0,60379.0,0.44582947]
[1724951896690,0.083779,60380.0,60379.0,0.08002947]
[1724951896998,0.083779,60380.0,60376.0,0.082784]
[1724951896999,0.082785,60377.0,60376.0,0.082784]
[1724951898114,0.082789,60374.0,60370.0,0.00024847]
[1724951898289,0.3598,60371.0,60370.0,0.00024847]
[1724951898599,0.7136708,60371.0,60370.0,0.00024847]
[1724951898805,0.78095245,60371.0,60370.0,1e-08]
[1724951898991,0.89315245,60371.0,60370.0,1e-08]
[1724951899191,0.89215245,60371.0,60370.0,1e-08]
[1724951899496,0.72794814,60371.0,60370.0,0.00100001]
[1724951899690,0.77938827,60371.0,60370.0,0.00100001]
[1724951900092,4.55138827,60371.0,60370.0,0.00200001]
[1724951900797,4.55138827,60371.0,60370.0,0.00100001]
[1724951900996,4.55638827,60371.0,60370.0,0.00200001]
[1724951901604,4.62125173,60371.0,60370.0,0.00200001]
[1724951901790,4.47359627,60371.0,60370.0,0.00200001]
[1724951903389,0.0828,60365.0,60364.0,0.082801]
[1724951903590,0.48414439,60365.0,60364.0,0.082801]
[1724951904390,0.48914439,60365.0,60364.0,0.082801]
[1724951904602,0.49314439,60365.0,60364.0,0.082801]
[1724951905396,0.49314439,60365.0,60362.0,0.01186285]
[1724951905397,0.082803,60363.0,60362.0,0.09466685]
[1724951905591,0.12334739,60363.0,60362.0,0.082804]
[1724951906097,0.082803,60363.0,60362.0,0.082804]
[1724951906490,0.086803,60363.0,60362.0,0.082804]
[1724951906686,0.004,60363.0,60362.0,0.372804]
[1724951906890,0.004,60363.0,60362.0,0.4224403]
[1724951907097,0.007,60363.0,60362.0,0.4224403]
[1724951907891,0.007,60363.0,60362.0,1.6850483]
[1724951908091,0.007,60363.0,60362.0,1.635412]
[1724951910105,0.007,60363.0,60362.0,1.035412]
[1724951910806,0.007,60363.0,60362.0,0.538412]
[1724951910996,0.007,60363.0,60362.0,0.21519938]
[1724951911303,0.007,60363.0,60362.0,0.50519938]
[1724951911607,0.007,60363.0,60362.0,0.455608]
[1724951911804,0.007,60363.0,60362.0,1.635412]
[1724951912194,0.007,60363.0,60362.0,1.70159374]
[1724951912396,0.00024847,60371.0,60370.0,0.248379]
[1724951912596,1e-08,60371.0,60370.0,1.996099]
[1724951912798,0.0039,60380.0,60379.0,0.082781]
[1724951913012,0.082772,60386.0,60385.0,0.082773]
[1724951913305,0.1336909,60390.0,60382.0,0.3608]
[1724951913519,0.08277,60388.0,60387.0,0.082768]
[1724951915393,0.00024847,60394.0,60385.0,0.001]
[1724951915596,0.082763,60392.0,60391.0,0.082763]
[1724951916798,0.082763,60392.0,60391.0,0.083763]
[1724951917301,0.084763,60392.0,60391.0,0.084763]
[1724951917805,0.445563,60392.0,60391.0,0.084763]
[1724951919206,0.3628,60392.0,60391.0,0.084763]
[1724951921197,0.45414219,60392.0,60391.0,0.084763]
[1724951924406,0.3628,60392.0,60391.0,0.084763]
[1724951924712,0.4541424,60392.0,60391.0,0.084763]
[1724951926310,0.5369054,60392.0,60391.0,0.084763]
[1724951928316,0.445563,60392.0,60391.0,0.084763]
[1724951928513,0.528326,60392.0,60391.0,0.002]
[1724951928702,0.082774,60384.0,60383.0,0.0039]
[1724951928904,0.082775,60383.0,60382.0,0.3608]
[1724951929212,0.082775,60383.0,60381.0,0.09490973]
[1724951929213,0.165554,60382.0,60381.0,0.00024847]
[1724951929804,0.164554,60382.0,60381.0,0.00024847]
[1724951930705,0.163554,60382.0,60381.0,0.00024847]
[1724951931104,0.166554,60382.0,60381.0,0.00124847]
[1724951931505,0.168554,60382.0,60381.0,0.00224847]
[1724951940307,0.082786,60375.0,60374.0,0.0039]
[1724951940511,0.082789,60374.0,60373.0,0.082787]
[1724951942309,0.002,60374.0,60373.0,0.082787]
[1724951943023,0.005,60374.0,60373.0,0.082787]
[1724951943917,0.087788,60374.0,60373.0,0.082787]
[1724951944418,0.087788,60374.0,60372.0,0.44359]
[1724951944419,0.082789,60373.0,60372.0,0.44359]
[1724951944720,0.082789,60373.0,60372.0,0.3608]
[1724951944912,0.082789,60373.0,60372.0,0.44359]
[1724951945912,0.005,60374.0,60373.0,0.082789]
[1724951946426,0.002,60374.0,60373.0,0.082789]
[1724951946722,0.082783,60378.0,60377.0,0.082784]
[1724951947510,0.00024847,60380.0,60379.0,0.082781]
[1724951950311,0.00324847,60380.0,60379.0,0.083781]
[1724951950512,0.00824847,60380.0,60379.0,0.167562]
[1724951950718,0.00824847,60380.0,60379.0,0.21714079]
[1724951950923,0.00824847,60380.0,60379.0,0.167562]
[1724951951719,0.00824847,60380.0,60379.0,0.084781]
[1724951951918,0.00824847,60380.0,60379.0,0.21713161]
[1724951952120,0.00824847,60380.0,60379.0,0.167562]
[1724951954425,0.00824847,60380.0,60379.0,0.17965753]
[1724951954619,0.00824847,60380.0,60379.0,0.22923825]
[1724951954819,0.00824847,60380.0,60379.0,0.17965753]
[1724951955911,0.00824847,60380.0,60379.0,0.26243853]
[1724951956113,0.0039,60387.0,60386.0,0.165542]
[1724951956327,0.082764,60392.0,60390.0,0.082766]
[1724951956628,3.959364,60391.0,60390.0,0.082766]
[1724951957719,3.964364,60391.0,60390.0,0.083766]
[1724951958326,4.0557048,60391.0,60390.0,0.083766]
[1724951958529,4.20374668,60391.0,60390.0,0.083766]
[1724951959028,4.12098268,60391.0,60390.0,0.083766]
[1724951959725,3.9729408,60391.0,60390.0,0.084766]
[1724951960328,4.12093366,60391.0,60390.0,0.084766]
[1724951960527,3.92213408,60391.0,60390.0,0.084766]
[1724951960831,3.97293855,60391.0,60390.0,0.084766]
[1724951961021,4.12093141,60391.0,60390.0,0.084766]
[1724951961622,3.97293855,60391.0,60390.0,0.084766]
[1724951962130,3.92213408,60391.0,60390.0,0.084766]
[1724951962733,3.92213408,60391.0,60390.0,0.250298]
[1724951962956,0.04553408,60391.0,60390.0,0.983864]
[1724951963230,0.005,60391.0,60390.0,0.983864]
[1724951964429,0.00024847,60397.0,60396.0,0.082757]
[1724951964622,0.00024847,60397.0,60396.0,0.443557]
[1724951964623,0.0407751,60397.0,60396.0,0.443557]
[1724951966417,0.00024847,60397.0,60396.0,0.444557]
[1724951966819,0.00024847,60397.0,60396.0,0.445557]
[1724951967233,0.00024847,60397.0,60396.0,0.45755932]
[1724951969234,0.00024847,60397.0,60396.0,0.54031632]
[1724951973735,0.00024847,60397.0,60396.0,0.17951632]
[1724951973943,0.00024847,60397.0,60396.0,0.54031632]
[1724951973944,0.04077425,60397.0,60396.0,0.54031632]
[1724951974832,0.04077425,60397.0,60396.0,0.91307332]
[1724951975535,0.1046,60404.0,60403.0,0.165496]
[1724951975741,0.1046,60404.0,60403.0,0.816296]
[1724951976136,0.26884791,60404.0,60403.0,0.816296]
[1724951976632,0.1046,60404.0,60403.0,0.817296]
[1724951977042,0.1046,60404.0,60403.0,0.818296]
[1724951978333,0.25243406,60404.0,60403.0,0.818296]
[1724951979334,0.1046,60404.0,60403.0,0.818296]
[1724951979938,0.1046,60404.0,60403.0,0.528296]
[1724951981851,0.1046,60404.0,60403.0,0.445548]
[1724951983036,0.1046,60404.0,60403.0,0.45738746]
[1724951986337,0.187347,60404.0,60403.0,0.45738746]
[1724951986540,0.270094,60404.0,60403.0,0.3628]
[1724951986838,0.766734,60404.0,60403.0,0.3628]
[1724951987239,4.536734,60404.0,60403.0,0.3628]
[1724951987646,4.536734,60404.0,60403.0,0.002]
[1724951988049,4.536734,60404.0,60403.0,0.112]
[1724951988444,4.62805934,60404.0,60403.0,0.112]
[1724951990146,4.62805934,60404.0,60403.0,0.002]
[1724951991239,4.62805934,60404.0,60397.0,0.01208563]
[1724951991240,0.082755,60398.0,60397.0,1e-08]
[1724951991552,0.20603722,60398.0,60397.0,1e-08]
[1724951991854,0.20603925,60398.0,60397.0,1e-08]
[1724951992345,0.25683991,60398.0,60397.0,1e-08]
[1724951992549,0.25683991,60398.0,60397.0,0.00100001]
[1724951992750,0.25683991,60398.0,60397.0,0.00200001]
[1724951993549,0.25683991,60398.0,60388.0,0.0039]
[1724951993550,0.082767,60389.0,60388.0,0.0039]
[1724951993753,0.08277,60387.0,60386.0,0.443571]
[1724951993942,0.12329925,60387.0,60385.0,0.01191983]
[1724951994252,0.082778,60382.0,60381.0,0.082778]
[1724951994447,0.12330725,60382.0,60381.0,0.082778]
[1724951994649,0.081781,60379.0,60378.0,0.37268245]
[1724951994852,0.12231025,60379.0,60378.0,0.37268245]
[1724951995456,0.12131025,60379.0,60378.0,0.37268245]
[1724951995644,0.082785,60376.0,60375.0,0.00024847]
[1724951995843,0.59141787,60376.0,60375.0,0.00024847]
[1724951996045,0.53492563,60376.0,60375.0,0.00024847]
[1724951996455,0.438585,60376.0,60375.0,0.00024847]
[1724951996864,0.547385,60376.0,60375.0,0.00024847]
[1724951997154,0.549385,60376.0,60375.0,0.00024847]
[1724951997362,0.545385,60376.0,60375.0,0.00024847]
[1724951997551,0.62817,60376.0,60375.0,0.00024847]
[1724951998253,0.63117,60376.0,60375.0,0.00024847]
[1724951999246,0.548385,60376.0,60375.0,0.00024847]
[1724952000651,0.63117,60376.0,60375.0,0.00024847]
[1724952000851,0.548385,60376.0,60375.0,0.00024847]
[1724952001759,0.439585,60376.0,60375.0,0.00024847]
[1724952001961,0.439585,60376.0,60375.0,0.08303447]
[1724952003270,0.439585,60376.0,60375.0,0.00024847]
[1724952006359,0.52237,60376.0,60375.0,0.00024847]
[1724952007267,0.52237,60376.0,60375.0,1e-08]
[1724952007457,0.63617,60376.0,60375.0,1e-08]
[1724952011780,0.718955,60376.0,60375.0,1e-08]
[1724952011975,1.215835,60376.0,60375.0,1e-08]
[1724952012171,0.082807,60360.0,60358.0,0.3608]
[1724952012467,1.0796,60376.0,60359.0,0.2218]
[1724952012468,0.4796,60376.0,60359.0,0.2218]
[1724952012675,0.4796,60376.0,60368.0,0.082795]
[1724952012676,0.165592,60369.0,60368.0,0.082795]
[1724952013976,0.082797,60367.0,60366.0,0.3608]
[1724952015683,0.165594,60367.0,60366.0,0.3608]
[1724952016774,0.166594,60367.0,60366.0,0.3668]
[1724952019278,0.249391,60367.0,60366.0,0.006]
[1724952020484,0.166594,60367.0,60366.0,0.006]
[1724952021779,0.083797,60367.0,60366.0,0.006]
[1724952022076,0.3628,60376.0,60374.0,0.082788]
[1724952022477,0.002,60376.0,60374.0,0.443588]
[1724952023675,0.00224847,60375.0,60374.0,0.443588]
[1724952024584,0.00024847,60375.0,60374.0,0.443588]
[1724952025179,0.00124847,60375.0,60374.0,0.443588]
[1724952025569,0.00124847,60375.0,60374.0,0.082788]
[1724952026581,0.04179309,60375.0,60374.0,0.082788]
[1724952026784,0.04079309,60375.0,60374.0,0.082788]
[1724952027084,0.04079309,60375.0,60374.0,0.083788]
[1724952027678,0.04179309,60375.0,60374.0,0.082788]
[1724952027983,0.14898851,60375.0,60372.0,0.1611447]
[1724952028187,0.14898851,60375.0,60373.0,0.443589]
[1724952028188,0.04054462,60374.0,60373.0,0.443589]
[1724952031783,0.12333262,60374.0,60373.0,0.443589]
[1724952032887,0.12433262,60374.0,60373.0,0.451589]
[1724952033285,0.04154462,60374.0,60373.0,0.451589]
[1724952033588,0.082754,60399.0,60375.0,0.082786]
[1724952033782,0.082752,60400.0,60399.0,0.082753]
[1724952036283,0.088752,60400.0,60399.0,0.083753]
[1724952036681,0.088752,60400.0,60399.0,0.001]
[1724952038396,3.858752,60400.0,60399.0,0.001]
[1724952041096,0.006,60400.0,60399.0,0.083753]
[1724952041701,0.09732509,60400.0,60399.0,0.083753]
[1724952042088,0.18007709,60400.0,60399.0,0.001]
[1724952042289,0.09732509,60400.0,60399.0,0.001]
[1724952042896,0.18007709,60400.0,60399.0,0.001]
[1724952043498,0.18007777,60400.0,60399.0,0.001]
[1724952046007,0.18007777,60400.0,60399.0,0.083753]
[1724952046208,0.09732577,60400.0,60399.0,0.083753]
[1724952046701,0.09732577,60400.0,60399.0,0.09570869]
[1724952047403,0.09732577,60400.0,60398.0,0.21012937]
[1724952047404,0.15668281,60400.0,60398.0,0.21012937]
[1724952047606,0.15068281,60399.0,60398.0,0.21012937]
[1724952047815,0.15068281,60399.0,60398.0,0.37563937]
[1724952048001,0.15068281,60399.0,60398.0,0.38786088]
[1724952048711,0.006,60400.0,60399.0,0.082753]
[1724952048909,0.006,60400.0,60399.0,0.744939]
[1724952049207,0.0039,60409.0,60405.0,0.082745]
[1724952049411,0.082736,60412.0,60405.0,0.52629]
[1724952049606,0.108,60415.0,60405.0,0.52629]
[1724952049806,0.108,60415.0,60405.0,0.443545]
[1724952050010,0.108,60415.0,60399.0,0.083753]
[1724952050011,0.082752,60400.0,60399.0,0.083753]
[1724952050307,3.852752,60400.0,60399.0,0.083753]
[1724952050808,3.852752,60400.0,60399.0,0.082753]
[1724952052506,0.088752,60400.0,60399.0,0.001]
[1724952053009,0.088752,60400.0,60399.0,0.083753]
[1724952057606,0.006,60400.0,60399.0,0.083753]
[1724952062018,0.088752,60400.0,60399.0,0.083753]
[1724952063603,0.12927832,60400.0,60399.0,0.083753]
[1724952063808,0.04652632,60400.0,60399.0,0.083753]
[1724952066513,0.12927778,60400.0,60399.0,0.083753]
[1724952067018,0.04652578,60400.0,60399.0,0.083753]
[1724952067618,0.04652578,60400.0,60399.0,0.249259]
[1724952067811,0.04652578,60400.0,60399.0,0.853139]
[1724952068006,0.04652578,60400.0,60399.0,1.453139]
[1724952068314,0.04652578,60400.0,60399.0,1.813939]
[1724952068315,0.006,60400.0,60399.0,1.813939]
[1724952069414,0.00024847,60406.0,60405.0,0.16549]